[Event "Estonian Women's Chess Championship 2021"]
[Site "Tallinn, Paul Keres Chess House, Estonia"]
[Date "2021.12.17"]
[Round "7.4"]
[White "Shadrina, Eva"]
[Black "Levchenko, Marina"]
[Result "0-1"]
[TimeControl "90 minutes for first 40 moves and 15 min. for the rest of the game with 30 sec."]
[WhiteFideId "4510623"]
[BlackFideId "4508548"]
[WhiteElo "1472"]
[BlackElo "1367"]

1. e4 {[%clk 01:30:57]} {[%emt 00:00:02]} e6 {[%clk 01:30:54]} {[%emt
00:00:07]} 2. d4 {[%clk 01:31:09]} {[%emt 00:00:18]} d5 {[%clk 01:31:10]}
{[%emt 00:00:14]} 3. Nc3 {[%clk 01:31:30]} {[%emt 00:00:09]} Bb4 {[%clk
01:31:15]} {[%emt 00:00:25]} 4. e5 {[%clk 01:31:17]} {[%emt 00:00:43]} c5
{[%clk 01:29:41]} {[%emt 00:02:03]} 5. a3 {[%clk 01:28:56]} {[%emt 00:02:51]}
Bxc3+ {[%clk 01:28:57]} {[%emt 00:01:14]} 6. bxc3 {[%clk 01:29:15]} {[%emt
00:00:11]} Qc7 {[%clk 01:27:51]} {[%emt 00:01:36]} 7. Bd2 {[%clk 01:23:51]}
{[%emt 00:05:53]} Ne7 {[%clk 01:25:00]} {[%emt 00:03:21]} 8. Qg4 {[%clk
01:22:38]} {[%emt 00:01:43]} cxd4 {[%clk 01:10:21]} {[%emt 00:15:10]} 9. cxd4
{[%clk 01:17:38]} {[%emt 00:05:30]} Qxc2 {[%clk 01:02:31]} {[%emt 00:08:19]} 10.
Qxg7 {[%clk 01:08:37]} {[%emt 00:09:31]} Rg8 {[%clk 00:58:03]} {[%emt
00:04:58]} 11. Qf6 {[%clk 00:59:02]} {[%emt 00:10:05]} Nf5 {[%clk 00:47:08]}
{[%emt 00:11:25]} 12. Nf3 {[%clk 00:18:39]} {[%emt 00:40:52]} Qb2 {[%clk
00:29:58]} {[%emt 00:17:41]} 13. Bg5 {[%clk 00:07:46]} {[%emt 00:11:23]} Qxa1+
{[%clk 00:24:48]} {[%emt 00:05:40]} 14. Ke2 {[%clk 00:07:54]} {[%emt 00:00:21]}
Nc6 {[%clk 00:23:10]} {[%emt 00:02:08]} 15. g4 {[%clk 00:07:24]} {[%emt
00:01:00]} Nfxd4+ {[%clk 00:20:45]} {[%emt 00:02:56]} 16. Nxd4 {[%clk
00:07:21]} {[%emt 00:00:33]} Qxd4 {[%clk 00:20:07]} {[%emt 00:01:09]} 0-1